Cogmind - Beta 13 @@@ ROGUE MODE // 2024.04.01 @ 02:03:19 Player: Kafouille Result: Destroyed by G-47 Trooper with Particle Gun Performance ------------- Evolutions (1) 500 Regions Visited (3) 600 Robots Destroyed (84) 420 Value Destroyed (1806) 1806 Prototype IDs (6) 120 Alien Tech Used (0) 0 Bonus (121) 121 TOTAL SCORE: 3567 Bonus ------- High Alert Combat Kills 111 Follower Combat Kills 47 Friendly Fire -37 Cogmind --------- Core Integrity 0/400 Matter 281/300 Energy 68/100 System Corruption 0% Temperature Hot (272) Movement Core (100) Ox1 Location -9/Storage Parts ------- > --- POWER (1) -------- (None) > --- PROPULSION (3) --- (None) > --- UTILITY (3) ------ Hacking Suite > --- WEAPON (2) ------- Advanced Beam Cannon > --- INVENTORY (5) ---- Cooled Ion Engine Cooled Ion Engine ECM Suite Peak State ------------ > --- POWER ------------ Ion Engine > --- PROPULSION ------- VSS Leg VSS Leg VSS Leg > --- UTILITY ---------- Cooling System Signal Interpreter Hardened Light Armor Plating > --- WEAPON ----------- Improved Medium Laser Improved Medium Laser > --- INVENTORY -------- Light Ion Engine VSS Leg Hacking Suite Minigun Minigun [Rating: 22] Favorites ----------- Power Ion Engine Engine Ion Engine Propulsion VSS Leg Leg VSS Leg Wheel Armored Wheel Hover Unit Improved Hover Unit Utility Signal Interpreter Device Sensor Array Processor Signal Interpreter Hackware Hacking Suite Protection Hardened Light Armor Plating Weapon Minigun Energy Gun Heavy EM Pulse Gun Energy Cannon Advanced Beam Cannon Ballistic Gun Minigun Ballistic Cannon Light Cannon Build | -11 -10 -9 -9 ------- Run | Yrd Mat Mat Sto Slots Evolved 2 | . . 2 . Power . | . . . . Propulsion 1 | . . 1 . Utility 1 | . . 1 . Weapon . | . . . . Parts Attached 65 | 6 16 40 3 Power 10 | 1 3 6 . Engine 10 | 1 3 6 . Core . | . . . . Reactor . | . . . . Propulsion 14 | 2 4 8 . Treads . | . . . . Leg 7 | 2 . 5 . Wheel 3 | . . 3 . Hover 4 | . 4 . . Flight . | . . . . Utility 16 | 1 4 10 1 Device 6 | 1 2 3 . Storage . | . . . . Processor 3 | . 2 1 . Hackware 1 | . . . 1 Protection 6 | . . 6 . Artifact . | . . . . Weapon 25 | 2 5 16 2 Energy Gun 11 | 1 1 9 . Energy Cannon 1 | . . . 1 Ballistic Gun 11 | 1 2 7 1 Ballistic Cannon 2 | . 2 . . Launcher . | . . . . Special Weapon . | . . . . Impact Weapon . | . . . . Slashing Weapon . | . . . . Piercing Weapon . | . . . . Special Melee Weapon . | . . . . Unidentified Prototypes 2 | . . 1 1 Parts Lost 17 | . 5 3 9 Power 4 | . 2 1 1 Propulsion 5 | . 2 . 3 Utility 5 | . 1 2 2 Weapon 3 | . . . 3 Highest Loss Streak 5 | . 2 1 5 To Critical Strikes . | . . . . Average Slot Usage (%) 92 | . 92 93 85 Engine 10 | . 13 9 10 Leg 20 | . . 27 27 Wheel 1 | . . 3 . Hover 7 | . 22 1 . Device 10 | . 13 9 9 Processor 10 | . 13 11 1 Hackware 1 | . . . 9 Protection 6 | . . 9 7 Energy Gun 8 | . 4 8 15 Ballistic Gun 11 | . 12 12 2 Ballistic Cannon 2 | . 9 . . Naked Turns . | . . . . Heaviest Build 21 | 6 10 21 15 Greatest Support 36 | 20 20 36 36 Greatest Overweight (x) 1 | . 1 1 1 Average Overweight (x) . | . . . . Largest Inventory Capacity 5 | 5 5 5 5 Average Capacity 5 | 5 5 5 5 Most Carried 5 | 3 5 5 5 Average Carried 4 | . 4 4 4 Final Capacity 5 | 5 5 5 5 Final Carried 5 | 2 4 5 3 Class Distribution -------------------- 83% | Mutant 15% | Scavenger-Mutant Dominant Class ---------------- Mutant | -10/Materials Mutant | -9/Materials Scavenger-Mutant | -9/Storage Resources | -11 -10 -9 -9 ----------- Run | Yrd Mat Mat Sto Matter Collected 1794 | 256 364 1068 106 Remotely . | . . . . Salvage Created 2692 | 91 596 1585 420 Parts 192 | 3 50 110 29 Haulers Intercepted 8 | . 2 5 1 Recyclers Shooed 5 | . 2 3 . Parts Field Recycled . | . . . . Retrieved Matter . | . . . . Parts Self-Destructed . | . . . . Prevented . | . . . . Kills | -11 -10 -9 -9 ------- Run | Yrd Mat Mat Sto Combat Hostiles Destroyed 52 | 1 11 29 11 Guns 45 | 1 9 28 7 Cannons 5 | . 2 . 3 AOE 2 | . . 1 1 Classes Destroyed 13 | 3 6 2 2 Worker 4 | 1 2 1 . Builder 5 | . 1 4 . Tunneler 1 | 1 . . . Hauler 8 | . 2 5 1 Recycler 1 | . 1 . . Mechanic 1 | . . . 1 Operator 4 | . 2 2 . Watcher 8 | . 2 5 1 Swarmer 18 | . 3 10 5 Grunt 24 | 1 8 11 4 Brawler 1 | . . 1 . Duelist 2 | . . . 2 Sentry 7 | . . 7 . Best Kill Streak 8 | 2 3 8 4 Combat Bots Only 7 | 1 3 7 3 Max Kills in Single Turn 2 | 1 1 2 1 Gunslinging 1 | . . 1 . Exploded 1 | . . 1 1 Melee . | . . . . Uniques/NPCs Destroyed . | . . . . Combat | -11 -10 -9 -9 -------- Run | Yrd Mat Mat Sto Hostile Shots Fired 280 | 5 89 122 64 Missed 88 | 2 33 35 18 Damage Taken 2367 | 33 660 954 720 Core 636 | . 227 130 279 Absorbed by Shields . | . . . . Regen/Repaired (Parts) 261 | . 56 205 . Core Remaining (%) 54 | 100 9 . . Volleys Fired 271 | 6 99 119 47 Largest 2 | 2 2 2 2 Hottest 112 | 60 70 112 93 Shots Fired 508 | 12 197 238 61 Gun 441 | 12 145 238 46 Cannon 67 | . 52 . 15 Launcher . | . . . . Special . | . . . . Kinetic 342 | 6 157 159 20 Thermal 72 | 6 40 11 15 Explosive . | . . . . Electromagnetic 94 | . . 68 26 Robot Hit Streak 17 | 2 5 17 11 Robot Miss Streak 8 | 1 8 6 3 Penetration Max . | . . . . Secondary Targets 6 | . 2 4 . Max Gunslinging Chain 1 | . 1 1 . Shots Hit Robots 280 | 7 87 150 36 Core Hits 120 | 5 38 55 22 Critical Kills . | . . . . Critical Parts Destroyed 2 | . . 2 . Critical Strikes 3 | . 1 2 . Burn 1 | . 1 . . Destroy 2 | . . 2 . Melee Attacks . | . . . . Impact . | . . . . Slashing . | . . . . Piercing . | . . . . Sneak Attacks . | . . . . Combat Hostiles . | . . . . Follow-up Attacks . | . . . . Damage Inflicted 4572 | 67 1044 2647 814 Guns 3742 | 67 612 2544 519 Cannons 619 | . 432 . 187 Explosions 179 | . . 71 108 Melee . | . . . . Ramming 32 | . . 32 . Kinetic 2942 | 22 837 1817 266 Thermal 728 | 45 207 181 295 Explosive . | . . . . Electromagnetic 870 | . . 617 253 Impact . | . . . . Slashing . | . . . . Piercing . | . . . . Highest Corruption 1 | . 1 . . Average Corruption 1 | . 1 . . Corruption Purged . | . . . . Corruption Blocked . | . . . . Effects 3 | . 3 . . Message Errors 1 | . 1 . . Heat Flow Errors 1 | . 1 . . Weapon Failures 1 | . 1 . . Overload Shots . | . . . . Overflow Damage . | . . . . Projectiles . | . . . . Explosions . | . . . . Melee . | . . . . Knockbacks 2 | . 2 . . Impact . | . . . . Kinetic 2 | . 2 . . Secondary . | . . . . Self-Inflicted Damage 27 | . . . 27 Shots 1 | . . . 1 Rammed . | . . . . Targets Rammed 5 | . . 5 . Kicked 5 | . . 5 . Crushed . | . . . . Highest Temperature 280 | 26 171 280 263 Average Temperature 47 | 13 37 52 66 Received Heat Transfer 768 | 18 249 255 246 Siege Activations . | . . . . Robots Corrupted . | . . . . Combat Hostiles . | . . . . Parts Fried 4 | . . 3 1 Impact Corruptions . | . . . . Robots Melted . | . . . . Combat Hostiles . | . . . . Parts Melted . | . . . . Heat Transferred 1671 | 100 655 383 533 Parts Sabotaged . | . . . . Parts Stolen . | . . . . Parts Stripped . | . . . . Power Chain Reactions 3 | . . 2 1 Alert | -11 -10 -9 -9 ------- Run | Yrd Mat Mat Sto Peak Influence 622 | 30 308 622 548 Initial 243 | . 19 107 243 Average 252 | 10 174 284 380 Maximum Alert Level 2 | . 1 2 2 Low Security (%) 40 | 100 61 34 . Level 1 42 | . 38 44 57 Level 2 16 | . . 20 42 Level 3 . | . . . . Level 4 . | . . . . Level 5 . | . . . . High Security . | . . . . Max Security . | . . . . Squads Dispatched 9 | . 2 4 3 Investigation 2 | . . 2 . Extermination . | . . . . Reinforcement 5 | . 2 2 1 Assault 2 | . . . 2 Garrison . | . . . . Intercept . | . . . . Searches Triggered . | . . . . Construction Impeded 1 | . . . 1 Haulers Reinforced . | . . . . Active Scanning Responses . | . . . . Cargo Convoy Interrupts . | . . . . Stealth | -11 -10 -9 -9 --------- Run | Yrd Mat Mat Sto Distress Signals 7 | . 2 3 2 Communications Jammed . | . . . . Distress Signals . | . . . . Times Spotted 91 | 1 23 41 26 Peak Tracking Total 9 | 1 5 5 9 Tactical Retreats 5 | . 3 . 2 Traps | -11 -10 -9 -9 ------- Run | Yrd Mat Mat Sto Traps Triggered 8 | . 2 6 . Indirectly . | . . . . Trap Hack Attempts . | . . . . Triggered . | . . . . Disarmed . | . . . . Reprogrammed . | . . . . Reused . | . . . . Traps Extracted . | . . . . Installed . | . . . . Triggered . | . . . . Machines | -11 -10 -9 -9 ---------- Run | Yrd Mat Mat Sto Machines Disabled 6 | . 2 3 1 Max in Single Turn 1 | . 1 1 1 Machines Repaired . | . . . . Machines Dismantled . | . . . . Machines Sabotaged . | . . . . Overloaded Fab Kills . | . . . . Hacking | -11 -10 -9 -9 --------- Run | Yrd Mat Mat Sto Machines Accessed 9 | . 3 4 2 Terminals 7 | . 2 3 2 Fabricators . | . . . . Repair Stations 2 | . 1 1 . Recycling Units . | . . . . Scanalyzers . | . . . . Garrison Access . | . . . . Total Hacks 25 | . 11 11 3 Successful 14 | . 5 8 1 Failed 11 | . 6 3 2 Catastrophic 2 | . 1 . 1 Database Lockouts . | . . . . Manual . | . . . . Terminals 16 | . 6 7 3 Fabricators . | . . . . Repair Stations 9 | . 5 4 . Recycling Units . | . . . . Scanalyzers . | . . . . Garrison Access . | . . . . Terminal Hacks 7 | . 2 4 1 Record 1 | . 1 . . Robot Analysis 1 | . . 1 . Prototype ID Bank 2 | . . 2 . Open Door 1 | . . . 1 Locate Traps 1 | . . 1 . Maintenance Status 1 | . 1 . . Fabricator Hacks . | . . . . Repair Station Hacks 7 | . 3 4 . Scan Component 3 | . 1 2 . Repair 3 | . 1 2 . Refit 1 | . 1 . . Recycling Unit Hacks . | . . . . Scanalyzer . | . . . . Garrison Access Hacks . | . . . . Unauthorized Hacks . | . . . . Terminals . | . . . . Fabricators . | . . . . Repair Stations . | . . . . Recycling Units . | . . . . Scanalyzers . | . . . . Garrison Access . | . . . . Data Cores Recovered . | . . . . Used . | . . . . Hacking Detections 8 | . 2 4 2 Full Trace Events 1 | . . 1 . Feedback Events . | . . . . Feedback Blocked . | . . . . Robot Schematics Acquired . | . . . . Robots Built . | . . . . Authchips . | . . . . Time . | . . . . Total Robot Build Rating . | . . . . Part Schematics Acquired . | . . . . Parts Built . | . . . . Authchips . | . . . . Time . | . . . . Total Part Build Rating . | . . . . Parts Repaired 3 | . 1 2 . Time 96 | . 26 70 . Parts Recycled . | . . . . Recycled Matter . | . . . . Retrieved Matter . | . . . . Retrieved Components . | . . . . Parts Scanalyzed . | . . . . Part Schematics Acquired . | . . . . Parts Damaged . | . . . . Bothacking | -11 -10 -9 -9 ------------ Run | Yrd Mat Mat Sto Used RIF Installer . | . . . . Robots Hacked . | . . . . Non-combat . | . . . . Combat . | . . . . Robot Hacks Applied . | . . . . Relay Couplers Released . | . . . . Fabnet Peak Effective % . | . . . . Robots Rewired . | . . . . Allies Hacked . | . . . . Hacks Repelled . | . . . . Allies | -11 -10 -9 -9 -------- Run | Yrd Mat Mat Sto Total Allies 2 | . . . 2 Largest Group 2 | . . . 2 Highest-Rated Group 62 | . . . 62 Highest-Rated Ally 31 | . . . 31 Total Orders . | . . . . Ally Attacks 8 | . . . 8 Total Damage 127 | . . . 127 Kills 3 | . . . 3 Allies Corrupted . | . . . . Allies Melted . | . . . . Intel | -11 -10 -9 -9 ------- Run | Yrd Mat Mat Sto Robot Analysis Total 1 | . . 1 . Derelict Logs Recovered . | . . . . Drone Launches . | . . . . Drone Recoveries . | . . . . Exploration | -11 -10 -9 -9 ------------- Run | Yrd Mat Mat Sto Turns Passed 2987 | 150 756 1769 312 Spaces Moved 2331 | 110 713 1337 171 Core 18 | 17 . . 1 Treads . | . . . . Legs 1290 | 93 15 1012 170 Wheels 156 | . . 156 . Hover 867 | . 698 169 . Flight . | . . . . Fastest Speed 50 | 50 56 56 90 Average Speed 78 | 109 58 85 90 Slowest Speed 180 | 120 120 180 100 Overloaded Moves . | . . . . Propulsion Burnouts . | . . . . Robots Hopped . | . . . . Cave-ins Triggered . | . . . . Exploration Rate (%) 46 | 10 81 67 27 Regions Visited 3 Branch Regions 1 Pre-discovered Areas . | . . . . Known Exits Taken 2 | . 1 1 . Unknown Exits Taken 1 | 1 . . . Scrap Searched . | . . . . Spaces Dug . | . . . . Terrain Destroyed 17 | . . 13 4 Melee . | . . . . Projectile . | . . . . AOE 17 | . . 13 4 Terrain Rammed . | . . . . Walls Destroyed . | . . . . Machines Disabled . | . . . . Actions | -11 -10 -9 -9 --------- Run | Yrd Mat Mat Sto Total 3027 | 129 876 1751 271 Wait 277 | . 28 200 49 Move 2328 | 109 712 1336 171 Hop . | . . . . Pick Up 41 | 8 10 22 1 Fast Attach 32 | . 8 24 . Attach 22 | 6 7 7 2 Detach 1 | . 1 . . Swap 11 | . 1 9 1 Drop 39 | . 10 29 . Fire 271 | 6 99 119 47 Melee . | . . . . Ram . | . . . . Kick 5 | . . 5 . Crush . | . . . . Escape Stasis . | . . . . Rewire . | . . . . Trap . | . . . . Miscellaneous . | . . . . Route ------- -11/Scrapyard -10/Materials (discovered 4 exits: *Mat x2 / *Min x2) -9/Materials (discovered 4 exits: *Mat x2 / *Sto x2) -9/Storage History --------- Turn | Location | Event 2 | -11/Scrapyard | Met Revision 17 92 | -11/Scrapyard | Discovered new exit (range 8) 151 | -11/Scrapyard | Entered Materials 241 | -10/Materials | Discovered new exit (range 18) 310 | -10/Materials | Build established: Mutant 346 | -10/Materials | Core integrity fell below 50% 599 | -10/Materials | Discovered new exit (range 7) 628 | -10/Materials | Identified exit to Mines 671 | -10/Materials | Discovered new exit (range 14) 796 | -10/Materials | Core integrity fell below 20% 830 | -10/Materials | Discovered new exit (range 4) 892 | -10/Materials | Repaired Lgt. Cannon 907 | -10/Materials | Identified exit to Materials 907 | -10/Materials | Entered another Materials area 907 | -9/Materials | Evolved 2 slots: Propulsion x1, Utility x1 1304 | -9/Materials | Discovered new exit (range 12) 1514 | -9/Materials | Discovered new exit (range 13) 1744 | -9/Materials | Repaired Minigun? 1783 | -9/Materials | Repaired Hrd. Light Armor Plating 2075 | -9/Materials | Identified exit to Storage 2341 | -9/Materials | Discovered exit to Storage (range 16) 2348 | -9/Materials | Destroyed 7 combat bots 2433 | -9/Materials | Discovered new exit (range 13) 2446 | -9/Materials | Identified exit to Materials 2676 | -9/Materials | Entered Storage 2726 | -9/Storage | Build established: Scavenger-Mutant 2810 | -9/Storage | Met a pair of Derelict thieves 2908 | -9/Storage | Core integrity fell below 50% 2942 | -9/Storage | Lost 5 parts (2n1u2w) 2962 | -9/Storage | Core integrity fell below 20% 2988 | -9/Storage | Destroyed by G-47 Trooper with Particle Gun Last Messages --------------- 02903_ VSS Leg destroyed. 02917_ G-47 Trooper destroyed. 02921_ G-34 Mercenary destroyed. 02925_ K-01 Serf collects debris. 02955_ Identified Adv. Beam Cannon. 02956_ Minigun destroyed. 02957_ L-31 Rogue destroyed. 02959_ Sensor Array destroyed. 02961_ L-31 Rogue destroyed. 02961_ Ion Engine destroyed. 02967_ G-34 Mercenary destroyed. 02974_ K-01 Serf collects debris. 02980_ VSS Leg destroyed. 02981_ G-34 Mercenary destroyed. 02982_ K-01 Serf collects debris. 02983_ Acquired 51 matter. 02985_ K-01 Serf collects debris. 02986_ M-13 Machinist destroyed. 02988_ K-01 Serf collects debris. [Achievement: First Step to Greatness] Map ----- +----------------------------------------------------+ | | | | | | | | | | | | | | | | | | | ???????????????????????????????????????? | | ???????????########????????????????????? | | ??????????##T#!!!!#????????????????????? | | ??????????# #????????????????????? | | ??????????# #!!!!#????????????????????? | | ??????????# ######????????????????????? | | ???????####+################ ???????? | | ???????# * ???????? | | ???????# %! ???????? | | ???????# u ???????? | | ???????######## g#####+#### ???????? | | ??????????????# #????????????????????? | | ??????????????# #????????????????????? | | ???????????#### #????????????????????? | | ???????????" # k #????????????????????? | | ???????????" + #????????????????????? | | ???????????" #@= #????????????????????? | | ???????????#T## #??????????????????? ? | | ???????????#### #?????????????????? ? | | ??????????????#%= #???????????????? #? | | ?????##########! #??????????????? +? | | ?????# # #?????????????? #? | | ?????# """ # #???????????? " #? | | ?????# "?"""" # #??????????? "%"" +? | | ?????# "????" #k #????????##% ""%#???? | | ?????# "????" +^%=#########["% = "#???? | | ?????# """"?" # *%## *=!%/%!* #???? | | ?????# """ # =[## """%*#"##/#+????? | | ?????# + ## ""?= *# ????? | | ?????# # ## ""??%"%#? """ #???? | | ?????########## m## "??"""=#??"R" #???? | | ??????######??# ## "??""% #????"?????? | | ??????#! ! #### ## """" #??????????? | | ??????# !! #T## ## [#??????????? | | ??????# " # ## !% #??????????? | | ??????#! / ######/###########???? | | ??????# " # /%= | | ??????#!! !# # =%= | | ??????######### ! | | ??????????????# ################? | | ??????????????## ### #???????????????? | +----------------------------------------------------+ Best States ------------- Heat Dissipation 50 Energy Generation 12 Energy Capacity 265 Matter Stores 300 Matter Capacity 300 Sight Range 18 Robot Scan Range 14 Terrain Scan Range 16 Terrain Scan Density 10 Armor Coverage 225 Evasion (%) 57 Offensive Hacking 10 Item Schematics ----------------- None Robot Schematics ------------------ None Fabricated ------------ Nothing Alien Tech Used ----------------- None Achievements -------------- Close Call Crack Shot First Step to Greatness Hey, That's Mine! Loot Pinata One Hack Too Far Part-time Mechanic Risk Taker Storm Trooper Uninvited Guest Challenges ------------ None Game ------ Seed GyrokineticMultitargetingPit Manual? 0 Play Time 01:07:13 Cumulative 1.0 hours Start 2024.04.01 @ 00:35:20 End 2024.04.01 @ 02:03:19 Sessions 1 Manual Loads 0 Difficulty Rogue Special Mode None Game No. 1 Rogue 1 Adventurer 0 Explorer 0 Win Type - Total 0 Types 0/0/0/0/0/0/0/0/0 Lore% 0 Gallery% 2 Achievement% 3 Wizard Run 0 Options --------- Layout 1 ASCII 0 Keyboard 0 Movement Numpad Keybinds 0 Fullscreen 2 Font 32/SmallcapsGlow Map View 50x35 Zoom Use 0% Tactical HUD 1 Map Filters NONE Filters NONE Steam 0 RUN: 6dbb8756-6aeb-47ab-8684-9ec0c23d998a